Cogmind - Beta 14 @@@ ROGUE MODE // 2024.09.06 @ 01:32:58 Player: Beef Result: Destroyed by Y-45 Defender with Heavy Assault Rifle Performance ------------- Evolutions (2) 1000 Regions Visited (3) 600 Robots Destroyed (33) 165 Value Destroyed (1187) 1187 Prototype IDs (2) 40 Alien Tech Used (0) 0 Bonus (0) 0 TOTAL SCORE: 2992 Bonus ------- None Cogmind --------- Core Integrity 0/550 Matter 258/300 Energy 80/100 System Corruption 4% Temperature Cool (9) Movement Rolling (110) Ox2 Location -8/Materials Parts ------- > --- POWER (1) -------- (None) > --- PROPULSION (2) --- Wheel > --- UTILITY (6) ------ Large Storage Unit Improved Power Shielding > --- WEAPON (2) ------- (None) > --- INVENTORY (15) --- SUBCON Basin (Full) Peak State ------------ > --- POWER ------------ Light Nuclear Core > --- PROPULSION ------- Light Treads Light Treads > --- UTILITY ---------- Improved Heat Sink Improved Heat Sink Large Storage Unit Structural Scanner Targeting Computer Improved Power Shielding > --- WEAPON ----------- Particle Gun Particle Gun > --- INVENTORY -------- SUBCON Basin [Rating: 39] Favorites ----------- Power Light Nuclear Core Engine Light Ion Engine Power Core Light Nuclear Core Propulsion Light Treads Treads Light Treads Leg Carbon-fiber Leg Flight Unit Cesium-ion Thruster Utility Large Storage Unit Device Structural Scanner Storage Large Storage Unit Processor Targeting Computer Protection Improved Power Shielding Weapon Medium Laser Energy Gun Medium Laser Energy Cannon Subdweller Beam Cannon Ballistic Gun Heavy Battle Rifle Ballistic Cannon Battle Cannon Launcher Grenade Launcher Impact Weapon Great Maul Build | -11 -10 -10 -8 ------- Run | Yrd Mat Sub Mat Slots Evolved 4 | . . . 4 Power . | . . . . Propulsion . | . . . . Utility 4 | . . . 4 Weapon . | . . . . Parts Attached 41 | 6 5 8 22 Power 6 | 1 . 2 3 Engine 3 | 1 . 1 1 Core 3 | . . 1 2 Reactor . | . . . . Propulsion 9 | 2 1 2 4 Treads 5 | 2 1 2 . Leg 2 | . . . 2 Wheel 1 | . . . 1 Hover . | . . . . Flight 1 | . . . 1 Utility 14 | 1 3 . 10 Device 5 | . 2 . 3 Storage 4 | 1 1 . 2 Processor 1 | . . . 1 Hackware . | . . . . Protection 4 | . . . 4 Artifact . | . . . . Weapon 12 | 2 1 4 5 Energy Gun 7 | 2 . 1 4 Energy Cannon 1 | . . 1 . Ballistic Gun 1 | . . 1 . Ballistic Cannon 1 | . . 1 . Launcher 1 | . 1 . . Special Weapon . | . . . . Impact Weapon 1 | . . . 1 Slashing Weapon . | . . . . Piercing Weapon . | . . . . Special Melee Weapon . | . . . . Unidentified Prototypes . | . . . . Corrupted Parts 1 | . . . 1 System Corruption 3 | . . . 3 Parts Lost 16 | . . 5 11 Power 3 | . . 2 1 Propulsion 6 | . . 2 4 Utility 2 | . . . 2 Weapon 5 | . . 1 4 Highest Loss Streak 4 | . . 3 4 To Critical Strikes . | . . . . Average Slot Usage (%) 92 | . 97 99 67 Engine 7 | . 14 7 . Core 4 | . . 6 5 Treads 25 | . 28 27 13 Device 12 | . 11 14 10 Storage 12 | . 14 14 7 Processor 1 | . . . 5 Protection 1 | . . . 5 Energy Gun 7 | . 27 2 5 Energy Cannon 4 | . . 6 . Ballistic Gun 4 | . . 6 4 Ballistic Cannon 3 | . . 4 3 Launcher 4 | . . 7 . Peak Build Rating 39 | 6 8 31 39 Average Rating 16 | 4 7 15 29 On Entrance 11 | . 6 8 31 Naked Turns 15 | . . . 15 Heaviest Build 45 | 12 32 37 45 Greatest Support 40 | 40 40 40 40 Greatest Overweight (x) 9 | . . 1 9 Average Overweight (x) . | . . . . Largest Inventory Capacity 15 | 8 15 15 15 Average Capacity 14 | 6 13 15 13 Most Carried 15 | 4 13 15 15 Average Carried 12 | 1 9 14 12 Final Capacity 15 | 8 15 15 15 Final Carried 15 | 4 13 15 15 Class Distribution -------------------- 88% | Mutant 11% | Scavenger-Mutant Dominant Class ---------------- Mutant | -10/Materials Mutant | -10/Subcaves Mutant | -8/Materials Resources | -11 -10 -10 -8 ----------- Run | Yrd Mat Sub Mat Matter Collected 1056 | 197 103 542 214 Remotely . | . . . . Salvage Created 1088 | . 405 254 429 Parts 70 | . 31 20 19 Haulers Intercepted 1 | . 1 . . Recyclers Shooed . | . . . . Parts Field Recycled . | . . . . Retrieved Matter . | . . . . Parts Self-Destructed 19 | . . 19 . Prevented . | . . . . Kills | -11 -10 -10 -8 ------- Run | Yrd Mat Sub Mat Combat Hostiles Destroyed 28 | . 8 11 9 Guns 17 | . 8 2 7 Cannons 4 | . . 3 1 AOE 7 | . . 6 1 Classes Destroyed 8 | . 4 1 3 Worker 1 | . . . 1 Builder 2 | . 2 . . Hauler 1 | . 1 . . Watcher 1 | . 1 . . Grunt 15 | . 8 . 7 Brawler 1 | . . . 1 Hunter 1 | . . . 1 Subdweller 11 | . . 11 . Best Kill Streak 4 | . 4 3 3 Combat Bots Only 3 | . 2 3 3 Max Kills in Single Turn 2 | . 1 2 1 Gunslinging . | . . . . Exploded 2 | . . 2 1 Melee . | . . . . Uniques/NPCs Destroyed . | . . . . Combat | -11 -10 -10 -8 -------- Run | Yrd Mat Sub Mat Hostile Shots Fired 229 | . 39 46 144 Missed 68 | . 11 20 37 Damage Taken 2618 | . 321 615 1682 Core 752 | . 57 133 562 Absorbed by Shields . | . . . . Redirected to Shielding 74 | . . . 74 Core Remaining (%) 62 | 100 . 24 . Volleys Fired 135 | . 35 64 36 Largest 2 | . 2 2 2 Hottest 130 | . 100 110 130 Shots Fired 216 | . 69 86 61 Gun 148 | . 68 23 57 Cannon 34 | . . 30 4 Launcher 34 | . 1 33 . Special . | . . . . Kinetic 56 | . . 35 21 Thermal 126 | . 68 18 40 Explosive 34 | . 1 33 . Electromagnetic . | . . . . Robot Hit Streak 22 | . 12 22 13 Robot Miss Streak 5 | . 3 2 5 Penetration Max . | . . . . Secondary Targets . | . . . . Shots Hit Robots 132 | . 44 40 48 Core Hits 67 | . 22 27 18 Critical Kills 1 | . . . 1 Critical Parts Destroyed 1 | . . . 1 Critical Strikes 8 | . 4 . 4 Burn 5 | . 4 . 1 Destroy 1 | . . . 1 Blast 1 | . . . 1 Smash 1 | . . . 1 Melee Attacks 9 | . . . 9 Impact 9 | . . . 9 Slashing . | . . . . Piercing . | . . . . Sneak Attacks 2 | . . . 2 Combat Hostiles . | . . . . Follow-up Attacks . | . . . . Damage Inflicted 3367 | . 573 1835 959 Guns 1582 | . 562 285 735 Cannons 379 | . . 349 30 Explosions 1201 | . . 1201 . Melee 194 | . . . 194 Ramming 11 | . 11 . . Kinetic 692 | . . 402 290 Thermal 1269 | . 562 232 475 Explosive 1201 | . . 1201 . Electromagnetic . | . . . . Impact 194 | . . . 194 Slashing . | . . . . Piercing . | . . . . Highest Corruption 1 | . . . 1 Average Corruption 1 | . . . 1 Corruption Purged . | . . . . Corruption Blocked . | . . . . Overload Shots . | . . . . Overflow Damage 81 | . . 12 69 Projectiles 12 | . . 12 . Explosions . | . . . . Melee 69 | . . . 69 Knockbacks 1 | . 1 . . Impact 1 | . 1 . . Kinetic . | . . . . Secondary . | . . . . Self-Inflicted Damage 31 | . . 31 . Shots 3 | . . 3 . Rammed 2 | . 1 . 1 Targets Rammed 2 | . 1 . 1 Kicked . | . . . . Crushed . | . . . . Highest Temperature 341 | . 341 15 80 Average Temperature 83 | . 106 8 29 Received Heat Transfer 1092 | . 171 93 828 Effects 3 | . 3 . . Energy Bleed 2 | . 2 . . Short Circuit 1 | . 1 . . Siege Activations . | . . . . Robots Corrupted . | . . . . Combat Hostiles . | . . . . Parts Fried . | . . . . Impact Corruptions 1 | . . . 1 Robots Melted . | . . . . Combat Hostiles . | . . . . Parts Melted 11 | . 8 . 3 Heat Transferred 3442 | . 1961 297 1184 Parts Sabotaged . | . . . . Parts Stolen . | . . . . Parts Stripped . | . . . . Power Chain Reactions . | . . . . Alert | -11 -10 -10 -8 ------- Run | Yrd Mat Sub Mat Peak Influence 225 | . 187 . 225 Initial . | . . . . Average 68 | . 61 . 84 Maximum Alert Level 1 | . . . 1 Low Security (%) 94 | 100 100 . 87 Level 1 5 | . . . 12 Level 2 . | . . . . Level 3 . | . . . . Level 4 . | . . . . Level 5 . | . . . . High Security . | . . . . Max Security . | . . . . Squads Dispatched 10 | . 3 . 7 Investigation 6 | . 3 . 3 Extermination . | . . . . Reinforcement 1 | . . . 1 Assault . | . . . . Garrison 3 | . . . 3 Intercept . | . . . . Searches Triggered . | . . . . Construction Impeded . | . . . . Haulers Reinforced . | . . . . Active Scanning Responses . | . . . . Cargo Convoy Interrupts . | . . . . Stealth | -11 -10 -10 -8 --------- Run | Yrd Mat Sub Mat Distress Signals 1 | . . . 1 Communications Jammed . | . . . . Distress Signals . | . . . . Times Spotted 60 | . 13 15 32 Peak Tracking Total 9 | . 4 3 9 Tactical Retreats 8 | . . 1 7 Traps | -11 -10 -10 -8 ------- Run | Yrd Mat Sub Mat Traps Triggered 3 | . 2 . 1 Indirectly . | . . . . Trap Hack Attempts . | . . . . Triggered . | . . . . Disarmed . | . . . . Reprogrammed . | . . . . Reused . | . . . . Traps Extracted . | . . . . Installed . | . . . . Triggered 3 | . . 3 . Machines | -11 -10 -10 -8 ---------- Run | Yrd Mat Sub Mat Machines Disabled 1 | . 1 . . Max in Single Turn 1 | . 1 . . Machines Repaired . | . . . . Machines Dismantled . | . . . . Machines Sabotaged . | . . . . Overloaded Fab Kills . | . . . . Hacking | -11 -10 -10 -8 --------- Run | Yrd Mat Sub Mat Machines Accessed 10 | . 5 2 3 Terminals 8 | . 5 . 3 Fabricators . | . . . . Repair Stations . | . . . . Recycling Units . | . . . . Scanalyzers . | . . . . Garrison Access . | . . . . Total Hacks 29 | . 16 3 10 Successful 14 | . 10 3 1 Failed 15 | . 6 . 9 Catastrophic 2 | . 1 . 1 Database Lockouts . | . . . . Manual 18 | . 10 . 8 Terminals 26 | . 16 . 10 Fabricators . | . . . . Repair Stations . | . . . . Recycling Units . | . . . . Scanalyzers . | . . . . Garrison Access . | . . . . Terminal Hacks 10 | . 6 3 1 Record 1 | . . 1 . Prototype ID Bank 1 | . 1 . . Open Door 1 | . . 1 . Terminal Index 2 | . 1 . 1 Registered Components 1 | . 1 . . Zone Layout 3 | . 3 . . Release Object 1 | . . 1 . Fabricator Hacks . | . . . . Repair Station Hacks . | . . . . Recycling Unit Hacks . | . . . . Scanalyzer . | . . . . Garrison Access Hacks . | . . . . Unauthorized Hacks 4 | . 4 . . Terminals 4 | . 4 . . Botnet 4 | . 4 . . Fabricators . | . . . . Repair Stations . | . . . . Recycling Units . | . . . . Scanalyzers . | . . . . Garrison Access . | . . . . Data Cores Recovered . | . . . . Used . | . . . . Hacking Detections 7 | . 4 . 3 Full Trace Events 5 | . 3 . 2 Feedback Events . | . . . . Feedback Blocked . | . . . . Robot Schematics Acquired . | . . . . Robots Built . | . . . . Authchips . | . . . . Time . | . . . . Total Robot Build Rating . | . . . . Part Schematics Acquired . | . . . . Parts Built . | . . . . Authchips . | . . . . Time . | . . . . Total Part Build Rating . | . . . . Parts Repaired . | . . . . Time . | . . . . Parts Recycled . | . . . . Recycled Matter . | . . . . Retrieved Matter . | . . . . Retrieved Components . | . . . . Parts Scanalyzed . | . . . . Part Schematics Acquired . | . . . . Parts Damaged . | . . . . Bothacking | -11 -10 -10 -8 ------------ Run | Yrd Mat Sub Mat Used RIF Installer . | . . . . Robots Hacked . | . . . . Non-combat . | . . . . Combat . | . . . . Robot Hacks Applied . | . . . . Relay Couplers Released . | . . . . Fabnet Peak Effective % . | . . . . Robots Rewired . | . . . . Allies Hacked . | . . . . Hacks Repelled . | . . . . Allies | -11 -10 -10 -8 -------- Run | Yrd Mat Sub Mat Total Allies . | . . . . Largest Group . | . . . . Highest-Rated Group . | . . . . Highest-Rated Ally . | . . . . Total Orders . | . . . . Ally Attacks . | . . . . Total Damage . | . . . . Kills . | . . . . Allies Corrupted . | . . . . Allies Melted . | . . . . Intel | -11 -10 -10 -8 ------- Run | Yrd Mat Sub Mat Robot Analysis Total . | . . . . Derelict Logs Recovered . | . . . . Drone Launches . | . . . . Drone Recoveries . | . . . . Exploration | -11 -10 -10 -8 ------------- Run | Yrd Mat Sub Mat Turns Passed 3823 | 82 753 2278 710 Spaces Moved 2147 | 44 379 1283 441 Core 30 | 1 . . 29 Treads 1945 | 43 379 1283 240 Legs 29 | . . . 29 Wheels . | . . . . Hover . | . . . . Flight 143 | . . . 143 Fastest Speed 35 | 50 160 160 35 Average Speed 151 | 157 160 160 117 Slowest Speed 500 | 160 160 240 500 Overloaded Moves . | . . . . Propulsion Burnouts . | . . . . Robots Hopped . | . . . . Cave-ins Triggered . | . . . . Exploration Rate (%) 38 | 4 67 53 29 Regions Visited 3 Branch Regions 1 Pre-discovered Areas . | . . . . Known Exits Taken . | . . . . Unknown Exits Taken 3 | 1 1 1 . Scrap Searched 5 | . . 5 . Spaces Dug 16 | . . 11 5 Terrain Destroyed 181 | . 4 170 7 Melee 5 | . . . 5 Projectile 9 | . . 7 2 AOE 167 | . 4 163 . Terrain Rammed . | . . . . Walls Destroyed . | . . . . Machines Disabled . | . . . . Actions | -11 -10 -10 -8 --------- Run | Yrd Mat Sub Mat Total 2487 | 54 455 1429 549 Wait 99 | . 26 44 29 Move 2144 | 43 378 1282 441 Hop . | . . . . Pick Up 27 | 5 7 12 3 Fast Attach 25 | 5 3 . 17 Attach 9 | 1 . 5 3 Detach 5 | . 2 . 3 Swap 7 | . 2 3 2 Drop 25 | . 1 19 5 Fire 135 | . 35 64 36 Melee 9 | . . . 9 Ram 1 | . . . 1 Kick . | . . . . Crush 1 | . 1 . . Escape Stasis . | . . . . Rewire . | . . . . Trap . | . . . . Miscellaneous . | . . . . Route ------- -11/Scrapyard -10/Materials (discovered 4 exits: [*Mat x3] / *Sub) -10/Subcaves -8/Materials History --------- Turn | Location | Event 18 | -11/Scrapyard | Discovered new exit (range 15) 83 | -11/Scrapyard | Entered Materials 311 | -10/Materials | Build established: Mutant 375 | -10/Materials | Discovered new exit (range 8) 548 | -10/Materials | Discovered new exit (range 16) 752 | -10/Materials | Discovered new exit (range 16) 769 | -10/Materials | Discovered new exit (range 9) 836 | -10/Materials | Entered Subcaves 900 | -10/Subcaves | Shifting Twisted Machinery released Shrapnel Trap 1064 | -10/Subcaves | A swath of the cavern ceiling suddenly collapsed 1083 | -10/Subcaves | Ambushed by Subdweller buried in earth 1609 | -10/Subcaves | Ambushed by Subdweller buried in earth 1611 | -10/Subcaves | Ambushed by Subdweller buried in earth 1617 | -10/Subcaves | Ambushed by Subdweller buried in earth 2098 | -10/Subcaves | Core integrity fell below 50% 2124 | -10/Subcaves | Lost 3 parts (1p1n1w) 2301 | -10/Subcaves | Shifting Twisted Machinery released Battle Cannon 2332 | -10/Subcaves | Shifting Twisted Machinery released Sub. Monowheel 2380 | -10/Subcaves | Discovered new exit (range 6) 2560 | -10/Subcaves | Found SUBCON Basin 3114 | -10/Subcaves | Entered Materials 3114 | -8/Materials | Evolved 4 slots: Utility x4 3557 | -8/Materials | Garrison activated, responded to threat 3651 | -8/Materials | Released all parts (7) 3664 | -8/Materials | Core integrity fell below 50% 3681 | -8/Materials | Lost 4 parts (2n1u1w) 3779 | -8/Materials | Core integrity fell below 20% 3824 | -8/Materials | Destroyed by Y-45 Defender with Heavy Assault Rifle Last Messages --------------- 03749_ Acquired Carbon-fiber Leg. 03755_ Acquired Imp. Power Shielding. 03760_ Acquired Lrg. Storage Unit. 03763_ U-05 Engineer destroyed. 03763_ Dropped Cesium-ion Thruster. 03766_ Dropped Aluminum Leg. 03766_ Acquired SUBCON Basin. 03790_ Particle Gun destroyed. 03807_ Aluminum Leg destroyed. 03809_ Sneak attack on K-01 Serf. 03809_ K-01 Serf suffers critical hit (Smash). 03809_ Destroyed Med. Matter Pod. 03809_ K-01 Serf system corrupted by crushing effect. 03809_ K-01 Serf destroyed. 03812_ Acquired 13 matter. 03813_ Carbon-fiber Leg destroyed. 03824_ Acquired Corrupted Wheel. 03824_ Integrated Corrupted Wheel (+3). 03824_ Complication: Imp. Power Shielding rejected. 03824_ Complication: Great Maul rejected. Map ----- +----------------------------------------------------+ | ??????????????????????## "G" ????????????? # # | | ??????????????????????## " ????????????? # # | | ?????????????????????? # ### # # | | ?????????????????????? #+##+###########/#/### ## | | ?????????????????????? # = | | ?????????????????????? + =! ! | | ?????????????????????? # *[!!%! | | ?????????????????????? ## ######+############ ## | | ?????????????????????? ## ######% !/== % # ## | | ???????????????????????##/###### !%== # T# | | ???????????????????????# ## *%= % / ## | | ???????????????????????# ## %# ## | | ???????????????????????# """ ## ! # ## | | ???????????????????????# """ ############### ## | | ???????????????????????# """ ################+### | | ???????????????????????# #?????????## | | ???????????# "#############/#######??????# """ """ | | ?????????? #??????# """ """ | | ?????????? m #??????# """ """ | | ?????????? gg #??????# | | ????????????#############g##### #??????# | | ????????????????????????#=#???? #??????# | | ????????????????????????#*#????? #??????# | | ????????????????????????# #?????? #??????######### | | ???????????????????????##/#####???#??????????????? | | ???????????????????????# @ #??????????????????? | | ???????????????????????#=/ !! #??????????????????? | | ??????????????????????#Y ![ + ?????????????????? | | ??????????????????????##! # ???????????????? | | ???????????????????????# !#? #??????????????? | | ???????????????????????# [ #?? #??????????????? | | ???????????????????????########??????????????????? | | ?????????????????????????????????????????????????? | | ?????????????????????????????????????????????????? | | ?????????????????????????????????????????????????? | | ?????????????????????????????????????????????????? | | ?????????????????????????????????????????????????? | | ?????????????????????????????????????????????????? | | ?????????????????????????????????????????????????? | | ?????????????????????????????????????????????????? | | ?????????????????????????????????????????????????? | | ?????????????????????????????????????????????????? | | ?????????????????????????????????????????????????? | | ?????????????????????????????????????????????????? | | ?????????????????????????????????????????????????? | | ?????????????????????????????????????????????????? | | ?????????????????????????????????????????????????? | | ?????????????????????????????????????????????????? | | ?????????????????????????????????????????????????? | | ?????????????????????????????????????????????????? | +----------------------------------------------------+ Best States ------------- Heat Dissipation 59 Energy Generation 14 Energy Capacity 250 Matter Stores 300 Matter Capacity 300 Sight Range 16 Terrain Scan Range 14 Terrain Scan Density 10 Power Shielding 66 Evasion (%) 63 Targeting Accuracy 5 Recoil Reduction 2 Item Schematics ----------------- None Robot Schematics ------------------ None Fabricated ------------ Nothing Alien Tech Used ----------------- None Achievements -------------- None Challenges ------------ None Game ------ Seed TargetPitchforkCalibrator Manual? 0 Play Time 00:20:17 Cumulative 120.2 hours Start 2024.09.06 @ 01:17:06 End 2024.09.06 @ 01:32:58 Sessions 1 Manual Loads 0 Difficulty Rogue Special Mode None Game No. 141 Rogue 141 Adventurer 0 Explorer 0 Win Type - Total 2 Types 2/0/0/0/0/0/0/0/0 Lore% 56 Gallery% 64 Achievement% 48 Wizard Run 0 Options --------- Layout 0 ASCII 0 Keyboard 1 Movement Numpad Keybinds 0 Fullscreen 2 Font 18/SmallcapsGlow Map View 76x50 Zoom Use 0% Tactical HUD 1 Map Filters NONE Filters NONE Steam 1 RUN: e0370606-83be-4edd-870f-a05ad204c42a